[Event "Live Chess"]
[Site "Chess.com"]
[Date "2023.09.16"]
[Round "-"]
[White "Mariafernanda2805"]
[Black "SaladaChess"]
[Result "0-1"]
[WhiteElo "988"]
[BlackElo "1103"]
[TimeControl "900+5"]
[EndTime "6:55:22 PDT"]
[Termination "SaladaChess venceu por xeque-mate"]

1. e4 {[%clk 0:14:54.3]} 1... c6 {[%clk 0:15:03.8]} 2. Bc4 {[%clk 0:14:54.5]}
2... d5 {[%clk 0:15:07.7]} 3. exd5 {[%clk 0:14:57.1]} 3... cxd5 {[%clk
0:15:11.4]} 4. Bd3 {[%clk 0:15:00.1]} 4... e5 {[%clk 0:15:13.8]} 5. Nf3 {[%clk
0:15:02]} 5... e4 {[%clk 0:15:17.9]} 6. Bxe4 {[%clk 0:15:03.5]} 6... dxe4 {[%clk
0:15:21.7]} 7. Ne5 {[%clk 0:14:58.7]} 7... Bd6 {[%clk 0:15:14.8]} 8. Nc4 {[%clk
0:14:54.8]} 8... Nf6 {[%clk 0:15:18.1]} 9. O-O {[%clk 0:14:53.5]} 9... O-O
{[%clk 0:15:15.8]} 10. d3 {[%clk 0:14:54.6]} 10... exd3 {[%clk 0:15:13.5]} 11.
Qxd3 {[%clk 0:14:55.8]} 11... Bc7 {[%clk 0:15:03.1]} 12. Qc3 {[%clk 0:14:51.5]}
12... b6 {[%clk 0:14:39.9]} 13. h3 {[%clk 0:14:50.2]} 13... Bb7 {[%clk
0:14:41.2]} 14. Be3 {[%clk 0:14:49.3]} 14... Qd5 {[%clk 0:14:29]} 15. f3 {[%clk
0:14:41.3]} 15... Ba6 {[%clk 0:13:53.3]} 16. Nba3 {[%clk 0:14:40.6]} 16... Bxc4
{[%clk 0:13:25.4]} 17. Nxc4 {[%clk 0:14:43.5]} 17... Nc6 {[%clk 0:13:17.6]} 18.
Rad1 {[%clk 0:14:43]} 18... Qe6 {[%clk 0:12:27.5]} 19. b3 {[%clk 0:14:25.4]}
19... h6 {[%clk 0:12:18.4]} 20. Qb2 {[%clk 0:14:07.9]} 20... Nd5 {[%clk
0:12:06.6]} 21. Rd3 {[%clk 0:13:29.1]} 21... Ncb4 {[%clk 0:11:53.8]} 22. Rdd1
{[%clk 0:13:23.8]} 22... Nxe3 {[%clk 0:11:51.2]} 23. Nxe3 {[%clk 0:13:23.8]}
23... Qxe3+ {[%clk 0:11:51.7]} 24. Rf2 {[%clk 0:13:25.2]} 24... Bg3 {[%clk
0:11:46]} 25. Rf1 {[%clk 0:13:01.5]} 25... Bxf2+ {[%clk 0:11:45.4]} 26. Rxf2
{[%clk 0:13:04.9]} 26... Rad8 {[%clk 0:11:41.5]} 27. Qb1 {[%clk 0:12:56.3]}
27... Rd2 {[%clk 0:11:38.8]} 28. Qf1 {[%clk 0:12:51.3]} 28... Rxf2 {[%clk
0:11:36]} 29. Qxf2 {[%clk 0:12:54]} 29... Qxf2+ {[%clk 0:11:39.7]} 30. Kxf2
{[%clk 0:12:57.3]} 30... Nxc2 {[%clk 0:11:43.8]} 31. Ke2 {[%clk 0:12:59.6]}
31... Re8+ {[%clk 0:11:46.6]} 32. Kd2 {[%clk 0:13:03]} 32... Nb4 {[%clk
0:11:50.4]} 33. Kc3 {[%clk 0:13:04.6]} 33... Nxa2+ {[%clk 0:11:54.4]} 34. Kc4
{[%clk 0:13:06.2]} 34... Re2 {[%clk 0:11:55.4]} 35. g4 {[%clk 0:13:08.1]} 35...
Re3 {[%clk 0:11:57.6]} 36. f4 {[%clk 0:13:08.6]} 36... Rxh3 {[%clk 0:11:59.2]}
37. f5 {[%clk 0:13:11.7]} 37... Rc3+ {[%clk 0:12:02.2]} 38. Kd4 {[%clk
0:13:11.4]} 38... Rxb3 {[%clk 0:12:06]} 39. Kc4 {[%clk 0:13:14.7]} 39... Rb4+
{[%clk 0:12:09.5]} 40. Kd5 {[%clk 0:13:17.8]} 40... Rxg4 {[%clk 0:12:13.1]} 41.
Ke5 {[%clk 0:13:21.6]} 41... Rg5 {[%clk 0:12:16.8]} 42. Kf4 {[%clk 0:13:23.2]}
42... a5 {[%clk 0:12:19]} 43. Ke5 {[%clk 0:13:25.4]} 43... a4 {[%clk 0:12:22.8]}
44. Kd6 {[%clk 0:13:27.2]} 44... a3 {[%clk 0:12:26.4]} 45. Ke7 {[%clk 0:13:30]}
45... Rxf5 {[%clk 0:12:29]} 46. Ke8 {[%clk 0:13:32.1]} 46... Nc3 {[%clk
0:12:26.1]} 47. Ke7 {[%clk 0:13:33.9]} 47... a2 {[%clk 0:12:29.9]} 48. Ke8
{[%clk 0:13:37.1]} 48... a1=Q {[%clk 0:12:32.9]} 49. Ke7 {[%clk 0:13:40.6]}
49... Qe1+ {[%clk 0:12:36.1]} 50. Kd8 {[%clk 0:13:43.8]} 50... Rd5+ {[%clk
0:12:37.7]} 51. Kc7 {[%clk 0:13:47.8]} 51... Qe7+ {[%clk 0:12:39.7]} 52. Kc6
{[%clk 0:13:49.8]} 52... Qe6+ {[%clk 0:12:41.3]} 53. Kc7 {[%clk 0:13:51]} 53...
Rd7+ {[%clk 0:12:43.3]} 54. Kc8 {[%clk 0:13:47.9]} 54... Qe8# {[%clk 0:12:46.6]}
0-1

[Event "Live Chess"]
[Site "Chess.com"]
[Date "2023.09.16"]
[Round "-"]
[White "Sabadin21"]
[Black "Ruanfelipe2014"]
[Result "0-1"]
[WhiteElo "881"]
[BlackElo "984"]
[TimeControl "900+5"]
[EndTime "6:56:45 PDT"]
[Termination "Ruanfelipe2014 venceu por xeque-mate"]

1. e4 {[%clk 0:15:01.9]} 1... e5 {[%clk 0:15:01.1]} 2. Nf3 {[%clk 0:15:05.9]}
2... Nc6 {[%clk 0:15:01.8]} 3. Nc3 {[%clk 0:15:09.4]} 3... Bc5 {[%clk
0:14:59.3]} 4. Bc4 {[%clk 0:15:10.6]} 4... d6 {[%clk 0:15:00.4]} 5. d3 {[%clk
0:15:12.4]} 5... Bg4 {[%clk 0:15:00]} 6. O-O {[%clk 0:15:14.8]} 6... Nd4 {[%clk
0:14:59.9]} 7. Be3 {[%clk 0:15:06.9]} 7... Nxf3+ {[%clk 0:14:59.2]} 8. gxf3
{[%clk 0:15:11.2]} 8... Bh3 {[%clk 0:14:59.3]} 9. Re1 {[%clk 0:15:13.2]} 9...
Bxe3 {[%clk 0:14:58.9]} 10. Rxe3 {[%clk 0:15:16.6]} 10... Qg5+ {[%clk
0:14:59.9]} 11. Kh1 {[%clk 0:15:07.4]} 11... Qg2# {[%clk 0:14:58.7]} 0-1

[Event "Live Chess"]
[Site "Chess.com"]
[Date "2023.09.16"]
[Round "-"]
[White "Highlanderson"]
[Black "rakohibri"]
[Result "1-0"]
[WhiteElo "1549"]
[BlackElo "701"]
[TimeControl "900+5"]
[EndTime "6:56:47 PDT"]
[Termination "Highlanderson venceu por xeque-mate"]

1. e4 {[%clk 0:15:01.2]} 1... e5 {[%clk 0:15:00.9]} 2. a3 {[%clk 0:15:03.8]}
2... Nf6 {[%clk 0:14:55]} 3. Nf3 {[%clk 0:15:05.6]} 3... Nc6 {[%clk 0:14:48.6]}
4. Nc3 {[%clk 0:15:06.6]} 4... Bc5 {[%clk 0:14:33.8]} 5. Nxe5 {[%clk 0:15:05.5]}
5... Nxe5 {[%clk 0:14:32.7]} 6. d4 {[%clk 0:15:07.9]} 6... Nd3+ {[%clk
0:12:59.7]} 7. Qxd3 {[%clk 0:14:50.3]} 7... Bb6 {[%clk 0:12:43.5]} 8. Bg5 {[%clk
0:14:45]} 8... h6 {[%clk 0:12:30.7]} 9. Bh4 {[%clk 0:14:41.3]} 9... c6 {[%clk
0:12:17.5]} 10. e5 {[%clk 0:14:35.9]} 10... Ng4 {[%clk 0:11:33.8]} 11. Bxd8
{[%clk 0:14:24.7]} 11... Bxd8 {[%clk 0:11:22.1]} 12. Qg3 {[%clk 0:14:18.1]}
12... d5 {[%clk 0:11:04.3]} 13. h3 {[%clk 0:14:17.1]} 13... Nxe5 {[%clk
0:09:56.6]} 14. Qxe5+ {[%clk 0:14:09.8]} 14... Be7 {[%clk 0:09:30.1]} 15. O-O-O
{[%clk 0:14:08]} 15... Be6 {[%clk 0:09:12.6]} 16. Qc7 {[%clk 0:13:52.3]} 16...
Bc8 {[%clk 0:08:26.8]} 17. Re1 {[%clk 0:13:48.5]} 17... O-O {[%clk 0:08:11.8]}
18. Qxe7 {[%clk 0:13:28.9]} 18... Bxh3 {[%clk 0:07:13.5]} 19. Bd3 {[%clk
0:13:09.3]} 19... Bxg2 {[%clk 0:06:43.5]} 20. Rhg1 {[%clk 0:13:07.2]} 20... Rae8
{[%clk 0:04:52.3]} 21. Qxe8 {[%clk 0:13:01.9]} 21... Rxe8 {[%clk 0:04:40.2]} 22.
Rxe8# {[%clk 0:13:02.1]} 1-0

[Event "Live Chess"]
[Site "Chess.com"]
[Date "2023.09.16"]
[Round "-"]
[White "Rafael-2021"]
[Black "DaviFuzatto"]
[Result "0-1"]
[WhiteElo "1080"]
[BlackElo "1381"]
[TimeControl "900+5"]
[EndTime "6:58:46 PDT"]
[Termination "DaviFuzatto venceu por desistência"]

1. e4 {[%clk 0:14:59.4]} 1... e6 {[%clk 0:15:03]} 2. d4 {[%clk 0:15:02.3]} 2...
d5 {[%clk 0:15:06.7]} 3. e5 {[%clk 0:15:05.7]} 3... c5 {[%clk 0:15:09.9]} 4. c3
{[%clk 0:15:08.3]} 4... Nc6 {[%clk 0:15:13.3]} 5. Nf3 {[%clk 0:15:12]} 5... Qb6
{[%clk 0:15:17.1]} 6. g3 {[%clk 0:15:06.9]} 6... Nge7 {[%clk 0:15:18.3]} 7. Na3
{[%clk 0:15:01.1]} 7... Nf5 {[%clk 0:15:17.6]} 8. Nc2 {[%clk 0:15:03]} 8... Be7
{[%clk 0:15:10.7]} 9. Bg2 {[%clk 0:15:05.7]} 9... O-O {[%clk 0:15:13.6]} 10. b3
{[%clk 0:15:00.5]} 10... cxd4 {[%clk 0:15:15.8]} 11. cxd4 {[%clk 0:15:02.7]}
11... Bb4+ {[%clk 0:15:17.4]} 12. Nxb4 {[%clk 0:14:55.2]} 12... Qxb4+ {[%clk
0:15:16.8]} 13. Qd2 {[%clk 0:14:55.9]} 13... Qxd2+ {[%clk 0:15:19.2]} 14. Bxd2
{[%clk 0:14:59.4]} 14... Ncxd4 {[%clk 0:15:23.2]} 15. Nxd4 {[%clk 0:14:51.9]}
15... Nxd4 {[%clk 0:15:28.1]} 16. O-O {[%clk 0:14:54.2]} 16... Bd7 {[%clk
0:15:26.7]} 17. Bc3 {[%clk 0:14:52.7]} 17... Nc6 {[%clk 0:15:22.2]} 18. Rac1
{[%clk 0:14:44.3]} 18... Rfc8 {[%clk 0:15:22.3]} 19. f4 {[%clk 0:14:43.6]} 19...
Ne7 {[%clk 0:15:11.8]} 20. Bd4 {[%clk 0:14:42]} 20... a6 {[%clk 0:15:11.2]} 21.
Rxc8+ {[%clk 0:14:42.9]} 21... Rxc8 {[%clk 0:15:14.1]} 22. Rf2 {[%clk
0:14:31.9]} 22... Nf5 {[%clk 0:15:15.3]} 23. Bb6 {[%clk 0:14:14.4]} 23... Rc6
{[%clk 0:15:14.3]} 24. Ba5 {[%clk 0:14:09.7]} 24... f6 {[%clk 0:14:53.4]} 25.
Bh3 {[%clk 0:13:59.3]} 25... Rc1+ {[%clk 0:14:52.1]} 26. Bf1 {[%clk 0:13:54.6]}
26... Ne3 {[%clk 0:14:50.2]} 27. Bd2 {[%clk 0:13:51.2]} 27... Rxf1+ {[%clk
0:14:50.1]} 28. Rxf1 {[%clk 0:13:52.4]} 28... Nxf1 {[%clk 0:14:54.4]} 29. Kxf1
{[%clk 0:13:56.1]} 29... fxe5 {[%clk 0:14:58.9]} 30. fxe5 {[%clk 0:13:58.4]}
30... Kf7 {[%clk 0:15:03.6]} 31. Ke2 {[%clk 0:14:01.7]} 31... Kg6 {[%clk
0:15:07.8]} 32. Kf3 {[%clk 0:14:05.3]} 32... Kf5 {[%clk 0:15:12.1]} 33. Bf4
{[%clk 0:14:03.5]} 33... g5 {[%clk 0:15:15.6]} 34. Bd2 {[%clk 0:14:01.5]} 34...
g4+ {[%clk 0:15:14.2]} 35. Ke3 {[%clk 0:14:03.3]} 35... Kxe5 {[%clk 0:15:17.7]}
36. Bc3+ {[%clk 0:14:06]} 36... Kf5 {[%clk 0:15:21.4]} 37. Bd4 {[%clk
0:14:08.5]} 37... h5 {[%clk 0:15:19.6]} 38. Bg7 {[%clk 0:14:01]} 38... e5 {[%clk
0:15:21.1]} 39. Bh6 {[%clk 0:13:56.3]} 39... d4+ {[%clk 0:15:23.1]} 40. Kd3
{[%clk 0:13:58.9]} 40... Bb5+ {[%clk 0:15:27.2]} 41. Kd2 {[%clk 0:14:00.4]}
41... Ke4 {[%clk 0:15:30.8]} 42. Bf8 {[%clk 0:14:02.1]} 42... Kf3 {[%clk
0:15:33]} 43. Bg7 {[%clk 0:14:02.4]} 43... Ke4 {[%clk 0:15:28.8]} 44. Bf6 {[%clk
0:13:59.1]} 44... d3 {[%clk 0:15:24.6]} 45. Bg5 {[%clk 0:13:59.6]} 45... Kf3
{[%clk 0:15:24]} 46. Bf6 {[%clk 0:14:01.1]} 46... e4 {[%clk 0:15:27.8]} 47. Bg5
{[%clk 0:13:50.8]} 47... Kg2 {[%clk 0:15:29.9]} 48. Bf4 {[%clk 0:13:43.8]} 48...
Kxh2 {[%clk 0:15:32.9]} 49. a4 {[%clk 0:13:41.3]} 49... Bc6 {[%clk 0:15:36]} 50.
Ke3 {[%clk 0:13:12.5]} 50... Kh3 {[%clk 0:15:30.3]} 51. Kd2 {[%clk 0:13:14.4]}
51... h4 {[%clk 0:15:33.4]} 52. gxh4 {[%clk 0:13:08.1]} 52... Kxh4 {[%clk
0:15:38.3]} 53. Bh2 {[%clk 0:13:06.4]} 53... Kh3 {[%clk 0:15:42.3]} 54. Bg1
{[%clk 0:13:09.8]} 54... g3 {[%clk 0:15:46.1]} 55. Kd1 {[%clk 0:13:07]} 55...
Kg2 {[%clk 0:15:50]} 56. Be3 {[%clk 0:13:09.7]} 56... Kf1 {[%clk 0:15:52]} 57.
Kd2 {[%clk 0:13:12.5]} 57... g2 {[%clk 0:15:56.4]} 58. Kd1 {[%clk 0:13:13.3]}
58... g1=Q {[%clk 0:16:00.3]} 59. Bxg1 {[%clk 0:13:16.7]} 59... Kxg1 {[%clk
0:16:05.2]} 60. Kd2 {[%clk 0:13:20.4]} 60... Kf2 {[%clk 0:16:09.6]} 61. Kd1
{[%clk 0:13:21.6]} 61... e3 {[%clk 0:16:14.5]} 62. a5 {[%clk 0:13:21]} 62... e2+
{[%clk 0:16:19.4]} 0-1

[Event "Live Chess"]
[Site "Chess.com"]
[Date "2023.09.16"]
[Round "-"]
[White "guilhermemazza"]
[Black "Corveloni_Ma"]
[Result "0-1"]
[WhiteElo "484"]
[BlackElo "1384"]
[TimeControl "900+5"]
[EndTime "7:00:59 PDT"]
[Termination "Corveloni_Ma venceu por xeque-mate"]

1. e4 {[%clk 0:15:04]} 1... c6 {[%clk 0:15:02.8]} 2. d4 {[%clk 0:15:06.5]} 2...
d5 {[%clk 0:15:05.4]} 3. f3 {[%clk 0:15:09.9]} 3... dxe4 {[%clk 0:14:59.9]} 4.
fxe4 {[%clk 0:15:12.8]} 4... Nf6 {[%clk 0:15:01.7]} 5. Nc3 {[%clk 0:15:14.8]}
5... e6 {[%clk 0:15:00.2]} 6. Bf4 {[%clk 0:15:08.3]} 6... Be7 {[%clk 0:15:00.9]}
7. Bxb8 {[%clk 0:15:10.7]} 7... Rxb8 {[%clk 0:15:04]} 8. Qe2 {[%clk 0:14:59.1]}
8... O-O {[%clk 0:15:05.8]} 9. O-O-O {[%clk 0:15:01.3]} 9... b5 {[%clk
0:15:03.9]} 10. a4 {[%clk 0:15:03.3]} 10... bxa4 {[%clk 0:14:42]} 11. Nxa4
{[%clk 0:14:52.3]} 11... Qa5 {[%clk 0:14:29.3]} 12. b3 {[%clk 0:14:54]} 12...
Ba3+ {[%clk 0:14:31.3]} 13. Kb1 {[%clk 0:14:56.4]} 13... Qxa4 {[%clk 0:14:22.9]}
14. d5 {[%clk 0:14:41.9]} 14... cxd5 {[%clk 0:14:22.9]} 15. exd5 {[%clk
0:14:44.8]} 15... exd5 {[%clk 0:14:25.5]} 16. Qe7 {[%clk 0:14:39.1]} 16... Bxe7
{[%clk 0:14:25.3]} 17. Rxd5 {[%clk 0:14:42.1]} 17... Nxd5 {[%clk 0:14:28.1]} 18.
Bc4 {[%clk 0:14:42.5]} 18... Nc3+ {[%clk 0:14:30.5]} 19. Kb2 {[%clk 0:14:42.5]}
19... Qa2+ {[%clk 0:14:32.2]} 20. Kxc3 {[%clk 0:14:44.9]} 20... Bf6+ {[%clk
0:14:35.4]} 21. Kd3 {[%clk 0:14:46.2]} 21... Rd8+ {[%clk 0:14:36.1]} 22. Ke3
{[%clk 0:14:49.1]} 22... Bg5+ {[%clk 0:14:25.6]} 23. Ke2 {[%clk 0:14:42]} 23...
Qxc2+ {[%clk 0:14:28.7]} 24. Kf3 {[%clk 0:14:44.9]} 24... Qd1+ {[%clk
0:14:26.6]} 25. Ke4 {[%clk 0:14:47.7]} 25... Re8+ {[%clk 0:14:16.7]} 26. Be6
{[%clk 0:14:47]} 26... Rxe6+ {[%clk 0:14:19.2]} 27. Kf5 {[%clk 0:14:49.5]} 27...
Qd5+ {[%clk 0:14:13.7]} 28. Kg4 {[%clk 0:14:51.7]} 28... Re3+ {[%clk 0:14:03.3]}
29. Kh5 {[%clk 0:14:50.1]} 29... g6# {[%clk 0:14:06.5]} 0-1

[Event "Live Chess"]
[Site "Chess.com"]
[Date "2023.09.16"]
[Round "-"]
[White "CauaLopes12"]
[Black "pedromiguelchess"]
[Result "1-0"]
[WhiteElo "1316"]
[BlackElo "1092"]
[TimeControl "900+5"]
[EndTime "7:02:25 PDT"]
[Termination "CauaLopes12 venceu por xeque-mate"]

1. e4 {[%clk 0:15:02]} 1... c5 {[%clk 0:15:02.9]} 2. Nf3 {[%clk 0:15:04.1]} 2...
d6 {[%clk 0:15:05.2]} 3. c3 {[%clk 0:15:08.3]} 3... Nc6 {[%clk 0:15:03.3]} 4. d4
{[%clk 0:15:12]} 4... cxd4 {[%clk 0:15:06.9]} 5. cxd4 {[%clk 0:15:14.9]} 5... e6
{[%clk 0:15:10.6]} 6. Nc3 {[%clk 0:15:19]} 6... d5 {[%clk 0:15:00.6]} 7. e5
{[%clk 0:15:14.9]} 7... Nge7 {[%clk 0:14:57.5]} 8. Be3 {[%clk 0:15:11.7]} 8...
Nf5 {[%clk 0:15:00.1]} 9. Qd2 {[%clk 0:15:14.1]} 9... Nxe3 {[%clk 0:14:52.2]}
10. Qxe3 {[%clk 0:15:15.7]} 10... Be7 {[%clk 0:14:53.9]} 11. Bd3 {[%clk
0:15:17.3]} 11... O-O {[%clk 0:14:49.1]} 12. O-O {[%clk 0:15:21.6]} 12... Qd7
{[%clk 0:14:38.9]} 13. Rad1 {[%clk 0:15:20.3]} 13... Qd8 {[%clk 0:14:27.1]} 14.
Bb1 {[%clk 0:15:20.9]} 14... g6 {[%clk 0:14:08.7]} 15. a3 {[%clk 0:15:09.1]}
15... Re8 {[%clk 0:14:11.9]} 16. Qd3 {[%clk 0:15:09.7]} 16... Bf8 {[%clk
0:14:13.7]} 17. h4 {[%clk 0:15:10.2]} 17... Bg7 {[%clk 0:14:10.2]} 18. h5 {[%clk
0:15:10.2]} 18... Ne7 {[%clk 0:14:00.3]} 19. hxg6 {[%clk 0:15:11.1]} 19... hxg6
{[%clk 0:14:03.6]} 20. Ng5 {[%clk 0:15:05.1]} 20... Nf5 {[%clk 0:14:05]} 21. Nf3
{[%clk 0:14:35.4]} 21... Bd7 {[%clk 0:13:45.5]} 22. Qd2 {[%clk 0:14:21]} 22...
a5 {[%clk 0:13:11.4]} 23. Bxf5 {[%clk 0:14:21.2]} 23... exf5 {[%clk 0:13:08.3]}
24. g3 {[%clk 0:14:23.9]} 24... b5 {[%clk 0:12:55.6]} 25. Kg2 {[%clk 0:14:22.7]}
25... b4 {[%clk 0:12:48.4]} 26. axb4 {[%clk 0:14:12.7]} 26... axb4 {[%clk
0:12:43.8]} 27. Nxd5 {[%clk 0:14:13.7]} 27... Bc6 {[%clk 0:12:43.5]} 28. Nxb4
{[%clk 0:14:13.8]} 28... Bxf3+ {[%clk 0:12:35.3]} 29. Kxf3 {[%clk 0:14:13.9]}
29... g5 {[%clk 0:12:25.1]} 30. Nc2 {[%clk 0:14:03.6]} 30... Qd5+ {[%clk
0:12:22]} 31. Ke2 {[%clk 0:14:03.4]} 31... Qe4+ {[%clk 0:12:19.9]} 32. Ne3
{[%clk 0:14:00.6]} 32... g4 {[%clk 0:12:13.3]} 33. Qd3 {[%clk 0:13:54.1]} 33...
Qf3+ {[%clk 0:11:24.6]} 34. Ke1 {[%clk 0:13:44.2]} 34... Bh6 {[%clk 0:10:56.8]}
35. Nxf5 {[%clk 0:12:37.4]} 35... Qxd3 {[%clk 0:10:29.8]} 36. Rxd3 {[%clk
0:12:00.6]} 36... Ra1+ {[%clk 0:10:28.5]} 37. Ke2 {[%clk 0:12:01.3]} 37... Rxf1
{[%clk 0:10:00.9]} 38. Kxf1 {[%clk 0:12:03.1]} 38... Rb8 {[%clk 0:09:54.5]} 39.
Nxh6+ {[%clk 0:12:02.4]} 39... Kg7 {[%clk 0:09:56.3]} 40. Nxg4 {[%clk 0:12:04]}
40... Rxb2 {[%clk 0:09:58.2]} 41. d5 {[%clk 0:12:07.2]} 41... Rb6 {[%clk
0:09:58.1]} 42. d6 {[%clk 0:12:09.7]} 42... Rb8 {[%clk 0:09:57.2]} 43. d7 {[%clk
0:12:14.1]} 43... Rd8 {[%clk 0:10:01]} 44. Nf6 {[%clk 0:12:18.1]} 44... Kf8
{[%clk 0:10:03.2]} 45. Rc3 {[%clk 0:12:17.6]} 45... Ke7 {[%clk 0:10:00.4]} 46.
Rc8 {[%clk 0:12:18.1]} 46... Rxd7 {[%clk 0:10:03.2]} 47. Nxd7 {[%clk 0:12:20.7]}
47... Kxd7 {[%clk 0:10:07.6]} 48. Rc4 {[%clk 0:12:21.4]} 48... Ke6 {[%clk
0:10:03.9]} 49. f4 {[%clk 0:12:21.5]} 49... f5 {[%clk 0:10:03.6]} 50. exf6
{[%clk 0:12:23.2]} 50... Kxf6 {[%clk 0:10:08]} 51. Rc5 {[%clk 0:12:26.5]} 51...
Ke7 {[%clk 0:10:09.8]} 52. Rc6 {[%clk 0:12:28.4]} 52... Kf7 {[%clk 0:10:13.6]}
53. f5 {[%clk 0:12:30.9]} 53... Ke7 {[%clk 0:10:17.5]} 54. g4 {[%clk 0:12:35.1]}
54... Kf7 {[%clk 0:10:21.1]} 55. g5 {[%clk 0:12:39.6]} 55... Ke7 {[%clk
0:10:24.6]} 56. g6 {[%clk 0:12:43.6]} 56... Kf8 {[%clk 0:10:28.3]} 57. Rc7
{[%clk 0:12:45.8]} 57... Kg8 {[%clk 0:10:23.2]} 58. f6 {[%clk 0:12:48.8]} 58...
Kf8 {[%clk 0:09:53.6]} 59. g7+ {[%clk 0:12:51.2]} 59... Kg8 {[%clk 0:09:55.7]}
60. Rc8+ {[%clk 0:12:54.3]} 60... Kf7 {[%clk 0:09:57.3]} 61. g8=Q+ {[%clk
0:12:58.2]} 61... Kxf6 {[%clk 0:10:01.9]} 62. Qh7 {[%clk 0:13:00.9]} 62... Ke5
{[%clk 0:10:04.4]} 63. Rc5+ {[%clk 0:13:04.2]} 63... Kd6 {[%clk 0:10:06.5]} 64.
Qf5 {[%clk 0:13:04.4]} 64... Ke7 {[%clk 0:10:09.5]} 65. Rc7+ {[%clk 0:13:05]}
65... Kd6 {[%clk 0:10:13]} 66. Qc5+ {[%clk 0:13:06.1]} 66... Ke6 {[%clk
0:10:16.6]} 67. Rc6+ {[%clk 0:13:10.2]} 67... Kd7 {[%clk 0:10:19.2]} 68. Qb6
{[%clk 0:13:14.7]} 68... Ke7 {[%clk 0:10:22.5]} 69. Qb7+ {[%clk 0:13:18.8]}
69... Kd8 {[%clk 0:10:23.2]} 70. Rc8# {[%clk 0:13:23.2]} 1-0

[Event "Live Chess"]
[Site "Chess.com"]
[Date "2023.09.16"]
[Round "-"]
[White "lgomessc"]
[Black "asafefausto"]
[Result "1-0"]
[WhiteElo "1148"]
[BlackElo "667"]
[TimeControl "900+5"]
[EndTime "7:03:02 PDT"]
[Termination "lgomessc venceu por desistência"]

1. e4 {[%clk 0:15:02.7]} 1... Nf6 {[%clk 0:14:58.8]} 2. Nc3 {[%clk 0:15:01.9]}
2... d6 {[%clk 0:14:53.1]} 3. Bc4 {[%clk 0:15:00.6]} 3... e5 {[%clk 0:14:46.1]}
4. Nf3 {[%clk 0:15:02.4]} 4... Be6 {[%clk 0:14:37.9]} 5. Bxe6 {[%clk 0:15:03.7]}
5... fxe6 {[%clk 0:14:40]} 6. d3 {[%clk 0:14:59]} 6... Be7 {[%clk 0:14:32.5]} 7.
Bg5 {[%clk 0:14:54.7]} 7... O-O {[%clk 0:14:28.4]} 8. O-O {[%clk 0:14:55.4]}
8... Nc6 {[%clk 0:14:22.4]} 9. Bxf6 {[%clk 0:14:51.2]} 9... Bxf6 {[%clk
0:14:22.7]} 10. h3 {[%clk 0:14:41.1]} 10... Qe7 {[%clk 0:13:56.3]} 11. Nb5
{[%clk 0:14:24.3]} 11... Rad8 {[%clk 0:13:44.2]} 12. d4 {[%clk 0:14:03.2]} 12...
exd4 {[%clk 0:13:36.4]} 13. Nbxd4 {[%clk 0:14:01]} 13... Nxd4 {[%clk 0:13:35.7]}
14. Nxd4 {[%clk 0:14:04.3]} 14... Bh4 {[%clk 0:13:17]} 15. Qg4 {[%clk 0:13:56]}
15... Rf7 {[%clk 0:12:17.3]} 16. Nxe6 {[%clk 0:13:43.4]} 16... Rdf8 {[%clk
0:11:58.8]} 17. Nxf8 {[%clk 0:13:41.4]} 17... Rxf8 {[%clk 0:11:59]} 18. g3
{[%clk 0:13:31.7]} 18... Qg5 {[%clk 0:11:54.2]} 19. Qxh4 {[%clk 0:13:27.1]}
19... Qxh4 {[%clk 0:11:54.7]} 20. gxh4 {[%clk 0:13:30.4]} 20... Rf6 {[%clk
0:11:55.8]} 21. f4 {[%clk 0:13:26.9]} 21... Rg6+ {[%clk 0:11:57.3]} 22. Kh2
{[%clk 0:13:27.8]} 22... c5 {[%clk 0:11:47.9]} 23. f5 {[%clk 0:13:30.1]} 23...
Rh6 {[%clk 0:11:40.9]} 24. Rg1 {[%clk 0:13:13.6]} 24... Rxh4 {[%clk 0:11:37.4]}
25. f6 {[%clk 0:12:57.3]} 25... Rxe4 {[%clk 0:11:23.6]} 26. Rxg7+ {[%clk
0:12:55.9]} 26... Kf8 {[%clk 0:11:24.9]} 27. Rag1 {[%clk 0:12:49.2]} 27... Re2+
{[%clk 0:11:20.2]} 28. R1g2 {[%clk 0:12:50.1]} 28... Re6 {[%clk 0:11:09.5]} 29.
Rg8+ {[%clk 0:12:50.8]} 29... Kf7 {[%clk 0:11:03.1]} 30. R8g7+ {[%clk
0:12:36.5]} 30... Kxf6 {[%clk 0:10:53.1]} 31. Rxh7 {[%clk 0:12:38]} 31... d5
{[%clk 0:10:52.7]} 32. Rxb7 {[%clk 0:12:39]} 32... d4 {[%clk 0:10:46.8]} 33.
Rf2+ {[%clk 0:12:39.4]} 33... Kg5 {[%clk 0:10:36.4]} 34. Rg7+ {[%clk 0:12:40.1]}
34... Rg6 {[%clk 0:10:37.7]} 35. Rg2+ {[%clk 0:12:38.1]} 35... Kf5 {[%clk
0:10:31.8]} 36. R7xg6 {[%clk 0:12:35.3]} 36... c4 {[%clk 0:10:34.5]} 37. Rc6
{[%clk 0:12:33.7]} 37... d3 {[%clk 0:10:32.8]} 38. Rc5+ {[%clk 0:12:35.2]} 38...
Ke4 {[%clk 0:10:30]} 39. cxd3+ {[%clk 0:12:37.9]} 39... cxd3 {[%clk 0:10:29.8]}
40. Rc7 {[%clk 0:12:38.2]} 40... Ke3 {[%clk 0:10:22.8]} 41. Re7+ {[%clk
0:12:36.9]} 41... Kd4 {[%clk 0:10:23.4]} 42. Rxa7 {[%clk 0:12:29.4]} 42... Ke3
{[%clk 0:10:23]} 43. Rd7 {[%clk 0:12:29.4]} 43... Ke4 {[%clk 0:10:17.7]} 44. Rd2
{[%clk 0:12:29.6]} 44... Ke3 {[%clk 0:10:15.9]} 45. R2xd3+ {[%clk 0:12:27.4]}
1-0